fUST/lending_fUST_20251004
["ID","MTS","AMOUNT","RATE_DAILY","PERIOD"]
[389108742,1759581048500,-532.92935156,0.00019178,2]
[389108744,1759581048509,-646.06,0.00019178,2]
[389108745,1759581048519,-500.0,0.00019178,2]
[389108747,1759581048528,-500.0,0.00019178,2]
[389108749,1759581048537,-500.0,0.00019178,2]
[389108752,1759581048547,-500.0,0.00019178,2]
[389108753,1759581048555,-500.0,0.00019178,2]
[389108755,1759581048564,-500.0,0.00019178,2]
[389108757,1759581048573,-488.59497018,0.00019178,2]
[389108759,1759581048582,-500.0,0.00019178,2]
[389108761,1759581048591,-500.0,0.00019178,2]
[389108763,1759581048601,-500.0,0.00019178,2]
[389108765,1759581048611,-500.0,0.00019178,2]
[389108767,1759581048619,-500.0,0.00019178,2]
[389108769,1759581048628,-1354.51,0.00019178,2]
[389108771,1759581048637,-500.0,0.00019178,2]
[389108773,1759581048647,-500.0,0.00019178,2]
[389108775,1759581048655,-500.0,0.00019178,2]
[389108777,1759581048664,-462.00971322,0.00019178,2]
[389108778,1759581048674,-544.28,0.00019178,2]
[389108779,1759581048683,-346.29909669,0.00019178,2]
[389108780,1759581048691,-500.0,0.00019178,2]
[389108781,1759581048700,-1061.59,0.00019178,2]
[389108782,1759581048709,-500.0,0.00019178,2]
[389108783,1759581048717,-500.0,0.00019178,2]
[389108784,1759581048726,-500.0,0.00019178,2]
[389108785,1759581048736,-500.0,0.00019178,2]
[389108786,1759581048744,-500.0,0.00019178,2]
[389108787,1759581048753,-500.0,0.00019178,2]
[389108789,1759581048763,-500.0,0.00019178,2]
[389108791,1759581048772,-500.0,0.00019178,2]
[389108792,1759581048781,-776.35,0.00019178,2]
[389108795,1759581048790,-500.0,0.00019178,2]
[389108797,1759581048799,-500.0,0.00019178,2]
[389108799,1759581048809,-500.0,0.00019178,2]
[389108800,1759581048818,-500.0,0.00019178,2]
[389108802,1759581048828,-573.98,0.00019178,2]
[389108804,1759581048837,-500.0,0.00019178,2]
[389108806,1759581048846,-483.31641846,0.00019178,2]
[389108809,1759581048855,-500.0,0.00019178,2]
[389108810,1759581048864,-962.88,0.00019178,2]
[389108812,1759581048874,-265.32370453,0.00019178,2]
[389108815,1759581048884,-500.0,0.00019178,2]
[389108817,1759581048893,-500.0,0.00019178,2]
[389108819,1759581048902,-500.0,0.00019178,2]
[389108821,1759581048911,-500.0,0.00019178,2]
[389108823,1759581048922,-500.0,0.00019178,2]
[389108825,1759581048930,-500.0,0.00019178,2]
[389108827,1759581048940,-909.92,0.00019178,2]
[389108828,1759581048949,-500.0,0.00019178,2]
[389108830,1759581048958,-500.0,0.00019178,2]
[389108833,1759581048967,-500.0,0.00019178,2]
[389108834,1759581048976,-500.0,0.00019178,2]
[389108836,1759581048985,-500.0,0.00019178,2]
[389108838,1759581048994,-500.0,0.00019178,2]
[389108841,1759581049003,-918.7,0.00019178,2]
[389108843,1759581049012,-500.0,0.00019178,2]
[389108845,1759581049026,-500.0,0.00019178,2]
[389108847,1759581049035,-500.0,0.00019178,2]
[389108848,1759581049044,-500.0,0.00019178,2]
[389108850,1759581049053,-500.0,0.00019178,2]
[389108852,1759581049062,-500.0,0.00019178,2]
[389108854,1759581049071,-500.0,0.00019178,2]
[389108856,1759581049081,-534.3,0.00019178,2]
[389108859,1759581049090,-500.0,0.00019178,2]
[389108861,1759581049099,-2101.01,0.00019178,2]
[389108863,1759581049109,-500.0,0.00019178,2]
[389108865,1759581049118,-500.0,0.00019178,2]
[389108867,1759581049129,-500.0,0.00019178,2]
[389108869,1759581049139,-705.1,0.00019178,2]
[389108871,1759581049149,-500.0,0.00019178,2]
[389108873,1759581049158,-287.33092903,0.00019178,2]
[389108874,1759581049167,-500.0,0.00019178,2]
[389108876,1759581049177,-500.0,0.00019178,2]
[389108879,1759581049187,-500.0,0.00019178,2]
[389108880,1759581049196,-1202.45,0.00019178,2]
[389108882,1759581049206,-482.86298677,0.00019178,2]
[389108884,1759581049216,-500.0,0.00019178,2]
[389108887,1759581049226,-897.09,0.00019178,2]
[389108889,1759581049236,-797.72,0.00019178,2]
[389108891,1759581049245,-873.79,0.00019178,2]
[389108893,1759581049255,-500.0,0.00019178,2]
[389108895,1759581049264,-575.61,0.00019178,2]
[389108897,1759581049273,-500.0,0.00019178,2]
[389108899,1759581049282,-500.0,0.00019178,2]
[389108901,1759581049291,-500.0,0.00019178,2]
[389108903,1759581049300,-500.0,0.00019178,2]
[389108905,1759581049308,-500.0,0.00019178,2]
[389108907,1759581049318,-500.0,0.00019178,2]
[389108909,1759581049327,-500.0,0.00019178,2]
[389108911,1759581049336,-500.0,0.00019178,2]
[389108913,1759581049346,-500.0,0.00019178,2]
[389108915,1759581049356,-423.43437365,0.00019178,2]
[389108917,1759581049365,-500.0,0.00019178,2]
[389108919,1759581049374,-500.0,0.00019178,2]
[389108921,1759581049383,-500.0,0.00019178,2]
[389108923,1759581049392,-690.27,0.00019178,2]
[389108925,1759581049401,-538.53,0.00019178,2]
[389108927,1759581049410,-2694.2,0.00019178,2]
[389108929,1759581049419,-500.0,0.00019178,2]
[389108931,1759581049427,-500.0,0.00019178,2]
[389108933,1759581049436,-500.0,0.00019178,2]
[389108935,1759581049446,-500.0,0.00019178,2]
[389108937,1759581049455,-500.0,0.00019178,2]
[389108939,1759581049464,-851.68,0.00019178,2]
[389108941,1759581049473,-500.0,0.00019178,2]
[389108943,1759581049483,-500.0,0.00019178,2]
[389108945,1759581049492,-500.0,0.00019178,2]
[389108947,1759581049501,-500.0,0.00019178,2]
[389108949,1759581049511,-500.0,0.00019178,2]
[389108951,1759581049519,-500.0,0.00019178,2]
[389108953,1759581049528,-500.0,0.00019178,2]
[389108955,1759581049538,-864.44,0.00019178,2]
[389108957,1759581049547,-500.0,0.00019178,2]
[389108959,1759581049556,-706.84,0.00019178,2]
[389108961,1759581049565,-500.0,0.00019178,2]
[389108963,1759581049575,-500.0,0.00019178,2]
[389108965,1759581049584,-212.9672017,0.00019178,2]
[389108967,1759581049592,-2073.17,0.00019178,2]
[389108969,1759581049602,-527.62,0.00019178,2]
[389108971,1759581049610,-500.0,0.00019178,2]
[389108973,1759581049619,-500.0,0.00019178,2]
[389108975,1759581049627,-564.68,0.00019178,2]
[389108977,1759581049636,-500.0,0.00019178,2]
[389108979,1759581049645,-500.0,0.00019178,2]
[389108981,1759581049654,-500.0,0.00019178,2]
[389108983,1759581049663,-500.0,0.00019178,2]
[389108985,1759581049672,-500.0,0.00019178,2]
[389108987,1759581049681,-505.39,0.00019178,2]
[389108989,1759581049690,-500.0,0.00019178,2]
[389108990,1759581049700,-1000.0,0.00019178,2]
[389108993,1759581049710,-500.0,0.00019178,2]
[389108995,1759581049719,-1224.13,0.00019178,2]
[389108997,1759581049729,-657.88,0.00019178,2]
[389108998,1759581049738,-438.32119938,0.00019178,2]
[389109002,1759581049762,-61.67880062,0.00019178,2]
[389109004,1759581049773,-500.0,0.00019178,2]
[389109006,1759581049783,-500.0,0.00019178,2]
[389109008,1759581049792,-500.0,0.00019178,2]
[389109010,1759581049801,-500.0,0.00019178,2]
[389109012,1759581049810,-500.0,0.00019178,2]
[389109014,1759581049819,-500.0,0.00019178,2]
[389109016,1759581049829,-500.0,0.00019178,2]
[389109018,1759581049838,-500.0,0.00019178,2]
[389109020,1759581049848,-500.0,0.00019178,2]
[389109022,1759581049857,-500.0,0.00019178,2]
[389109024,1759581049866,-500.0,0.00019178,2]
[389109026,1759581049876,-619.66,0.00019178,2]
[389109028,1759581049885,-500.0,0.00019178,2]
[389109030,1759581049895,-500.0,0.00019178,2]
[389109032,1759581049904,-500.0,0.00019178,2]
[389109034,1759581049916,-500.0,0.00019178,2]
[389109036,1759581049926,-500.0,0.00019178,2]
[389109038,1759581049935,-500.0,0.00019178,2]
[389109040,1759581049944,-713.19,0.00019178,2]
[389109042,1759581049954,-599.53,0.00019178,2]
[389109044,1759581049964,-500.0,0.00019178,2]
[389109046,1759581049973,-500.0,0.00019178,2]
[389109048,1759581049982,-500.0,0.00019178,2]
[389109050,1759581049992,-232.79624565,0.00019178,2]
[389109052,1759581050000,-500.0,0.00019178,2]
[389109054,1759581050009,-500.0,0.00019178,2]
[389109056,1759581050021,-687.15,0.00019178,2]
[389109058,1759581050030,-500.0,0.00019178,2]
[389109060,1759581050039,-500.0,0.00019178,2]
[389109062,1759581050050,-500.0,0.00019178,2]
[389109064,1759581050059,-1194.88310603,0.00019178,2]
[389109591,1759581124882,4006.56444135,0.00025,30]
[389109592,1759581130288,-666.0,0.00018097,2]
[389109593,1759581130317,-3668.01,0.00018791,2]
[389109594,1759581130366,-1331.99,0.00018791,2]
[389109595,1759581130506,-500.0,0.00018793,2]
[389109596,1759581130536,-642.38690867,0.00018793,2]
[389109597,1759581130563,-2715.23618266,0.00018981,2]
[389109598,1759581130622,-2284.76381734,0.00018981,2]
[389109599,1759581132149,-432.75402941,0.0001899,2]
[389109600,1759581132176,-4134.50194118,0.00019,2]
[389109601,1759581132236,-865.49805882,0.00019,2]
[389109602,1759581136360,-250.0,0.0001912,2]
[389109603,1759581136385,-500.0,0.00019173,2]
[389109604,1759581136411,-500.20872795,0.00019173,2]
[389109605,1759581136438,-218.51689397,0.00019178,2]
[389109606,1759581136464,-1600.51,0.00019178,2]
[389109607,1759581136489,-500.0,0.00019178,2]
[389109608,1759581136516,-500.0,0.00019178,2]
[389109609,1759581136541,-500.0,0.00019178,2]
[389109610,1759581136567,-361.53875616,0.00019178,2]
[389109611,1759581136673,-138.46124384,0.00019178,2]
[389109612,1759581136699,-500.0,0.00019178,2]
[389109613,1759581136727,-500.0,0.00019178,2]
[389109614,1759581136755,-500.0,0.00019178,2]
[389109615,1759581136785,-500.0,0.00019178,2]
[389109616,1759581136812,-500.0,0.00019178,2]
[389109617,1759581136839,-757.05,0.00019178,2]
[389109618,1759581136867,-500.0,0.00019178,2]
[389109619,1759581136898,-500.0,0.00019178,2]
[389109620,1759581136929,-500.0,0.00019178,2]
[389109621,1759581137382,-138.46124384,0.00019178,2]
[389109622,1759581137432,-208.98751232,0.00019178,2]
[389109623,1759581140530,-5000.0,0.00018929,2]
[389109624,1759581140565,-0.01,0.00019178,2]
[389109625,1759581144255,-247.0,0.00019177,2]
[389109626,1759581144284,-152.54124384,0.00019178,2]
[389109627,1759581144312,-500.0,0.00019178,2]
[389109628,1759581144340,-310.00875174,0.00019178,2]
[389109629,1759581144373,-506.43,0.00019178,2]
[389109630,1759581144400,-500.0,0.00019178,2]
[389109631,1759581144429,-500.0,0.00019178,2]
[389109632,1759581144456,-500.0,0.00019178,2]
[389109633,1759581144484,-594.76,0.00019178,2]
[389109634,1759581144510,-500.0,0.00019178,2]
[389109635,1759581144537,-500.0,0.00019178,2]
[389109636,1759581144793,-378.53000884,0.00019178,2]
[389109637,1759581146292,-5000.0,0.00018986,2]
[389109638,1759581146329,-0.01,0.00019178,2]
[389109639,1759581150335,-121.45999116,0.00019178,2]
[389109640,1759581150361,-265.05340603,0.00019178,2]
[389109641,1759581150387,-500.0,0.00019178,2]
[389109642,1759581150413,-500.0,0.00019178,2]
[389109643,1759581150439,-460.204294,0.00019178,2]
[389109644,1759581150464,-500.0,0.00019178,2]
[389109645,1759581150491,-904.09,0.00019178,2]
[389109646,1759581150518,-500.0,0.00019178,2]
[389109647,1759581150545,-767.81,0.00019178,2]
[389109648,1759581150571,-213.31461762,0.00019178,2]
[389109649,1759581150749,-536.14538238,0.00019178,2]
[389109650,1759581152364,-500.0,0.00019178,2]
[389109651,1759581152392,-500.0,0.00019178,2]
[389109652,1759581152418,-500.0,0.00019178,2]
[389109653,1759581152444,-500.0,0.00019178,2]
[389109654,1759581152470,-500.0,0.00019178,2]
[389109655,1759581152499,-608.11,0.00019178,2]
[389109656,1759581152528,-767.05,0.00019178,2]
[389109657,1759581152555,-748.66,0.00019178,2]
[389109658,1759581152582,-252.37,0.00019178,2]
[389109659,1759581152723,-247.63,0.00019178,2]
[389109660,1759581154585,-381.27365422,0.00019177,2]
[389109661,1759581154621,-307.86030659,0.00019177,2]
[389109662,1759581154652,-500.0,0.00019177,2]
[389109663,1759581154682,-398.42714617,0.00019177,2]
[389109664,1759581154715,-500.0,0.00019177,2]
[389109665,1759581154746,-213.65492824,0.00019177,2]
[389109666,1759581154776,-509.19404779,0.00019177,2]
[389109667,1759581154806,-287.25191155,0.00019177,2]
[389109668,1759581154835,-342.69438036,0.00019177,2]
[389109669,1759581154864,-641.34121736,0.00019177,2]
[389109670,1759581154895,-500.0,0.00019177,2]
[389109671,1759581154924,-331.90228688,0.00019177,2]
[389109672,1759581155271,-172.81024168,0.00019177,2]
[389109673,1759581158390,-109.85238609,0.00019177,2]
[389109674,1759581158419,-500.0,0.00019178,2]
[389109675,1759581158449,-738.76,0.00019178,2]
[389109676,1759581158477,-500.0,0.00019178,2]
[389109677,1759581158507,-500.0,0.00019178,2]
[389109678,1759581158539,-1322.83,0.00019178,2]
[389109679,1759581158570,-500.0,0.00019178,2]
[389109680,1759581158600,-637.1,0.00019178,2]
[389109681,1759581158739,-382.92522782,0.00019178,2]
[389109682,1759581162388,-5000.0,0.00018986,2]
[389109683,1759581162430,-0.01,0.00019178,2]
[389109684,1759581164430,-117.06477218,0.00019178,2]
[389109685,1759581164464,-500.0,0.00019178,2]
[389109686,1759581164492,-500.0,0.00019178,2]
[389109687,1759581164522,-500.0,0.00019178,2]
[389109688,1759581164550,-500.0,0.00019178,2]
[389109689,1759581164580,-1966.16,0.00019178,2]
[389109690,1759581164612,-700.04,0.00019178,2]
[389109691,1759581164751,-433.48045564,0.00019178,2]
[389109692,1759581166692,-66.51954436,0.00019178,2]
[389109693,1759581166722,-500.0,0.00019178,2]
[389109694,1759581166750,-500.0,0.00019178,2]
[389109695,1759581166779,-2286.46,0.00019178,2]
[389109696,1759581166809,-500.0,0.00019178,2]
[389109697,1759581166836,-500.0,0.00019178,2]
[389109698,1759581166863,-500.0,0.00019178,2]
[389109699,1759581166988,-294.05091128,0.00019178,2]
[389109700,1759581174513,-10000.01,0.00018694,2]
[389109701,1759581180557,-10000.01,0.00018694,2]
[389109711,1759581279647,-10000.01,0.00018136,2]
[389109712,1759581283480,-2905.0760567,0.00018136,2]
[389109713,1759581283502,-4189.8578866,0.00018136,2]
[389109714,1759581291548,-5000.0,0.00018506,2]
[389109715,1759581291587,-0.01,0.00018673,2]
[389109716,1759581295572,-5000.0,0.00018486,2]
[389109717,1759581295607,-0.01,0.00018673,2]
[389109718,1759581301615,-170.81586696,0.00018506,2]
[389109719,1759581301645,-559.96411796,0.00018673,2]
[389109720,1759581301674,-500.0,0.00018673,2]
[389109721,1759581301703,-500.0,0.00018673,2]
[389109722,1759581301731,-500.0,0.00018673,2]
[389109723,1759581301759,-266.89155795,0.00018693,2]
[389109724,1759581301800,-215.50221461,0.00018693,2]
[389109725,1759581301830,-300.0,0.00018693,2]
[389109726,1759581302077,300.0,0.00018693,2]
[389109727,1759581302276,300.0,0.00018693,2]
[389109728,1759581303397,246.85646438,0.00018673,2]
[389109729,1759581303646,500.0,0.00018673,2]
[389109730,1759581306190,1200.0,0.00018693,2]
[389109731,1759581306908,500.0,0.00018673,2]
[389109732,1759581315847,926.80602066,0.00018694,2]
[389109733,1759581315871,4073.19397934,0.00018694,2]
[389109739,1759581338715,2379.57297555,0.00018694,2]
[389109740,1759581339076,208.57,0.00018684,3]
[389109742,1759581349749,625.73,0.00018684,3]
[389109746,1759581362402,300.0,0.00018693,2]
[389109747,1759581363479,500.0,0.00018673,2]
[389109748,1759581365605,500.0,0.00018673,2]
[389109750,1759581368549,1412.94304511,0.00018694,2]
[389109751,1759581368577,3587.05695489,0.00018694,2]
[389109754,1759581391247,5000.0,0.00018694,2]
[389109755,1759581408604,1412.95304511,0.00018192,2]
[389109756,1759581408627,77.39591769,0.00018192,2]
[389109757,1759581414886,5000.0,0.00018694,2]
[389109758,1759581423217,300.0,0.00018693,2]
[389109759,1759581431875,207.27,0.00018684,3]
[389109760,1759581437546,1061.69765648,0.00018694,2]
[389109761,1759581442909,1200.0,0.00018693,2]
[389109762,1759581443015,621.85,0.00018684,3]
[389109763,1759581452938,250.0,0.000185,2]
[389109764,1759581460904,567.37658991,0.00018694,2]
[389109765,1759581463750,-6740.76735088,0.00018694,2]
[389109766,1759581463851,-10000.01,0.00018694,2]
[389109767,1759581464024,-10000.01,0.00018694,2]
[389109768,1759581464214,-10000.01,0.00018694,2]
[389109769,1759581464371,-10000.01,0.00018694,2]
[389109771,1759581467267,-10000.01,0.00018694,2]
[389109772,1759581467348,-10000.01,0.00018694,2]
[389109773,1759581467459,-10000.01,0.00018694,2]
[389109775,1759581477469,-796.56,0.00018684,3]
[389109776,1759581477497,-516.20431705,0.00018693,2]
[389109777,1759581477525,-500.0,0.00018693,2]
[389109779,1759581479667,509.57,0.00015984,2]
[389109780,1759581479735,8000.0,0.0002867,120]
[389109781,1759581479765,509.57,0.00015984,2]
[389109782,1759581482308,300.0,0.00018693,2]
[389109783,1759581482672,294.6754479,0.000185,2]
[389109784,1759581484832,2391.97533343,0.00018694,2]
[389109785,1759581486572,500.0,0.00018693,2]
[389109786,1759581486685,500.0,0.00018693,2]
[389109787,1759581486762,262.60563529,0.00018693,2]
[389109789,1759581487336,202.80911624,0.00018693,2]
[389109790,1759581487366,297.19088376,0.00018693,2]
[389109791,1759581488177,606.08494928,0.00018693,2]
[389109792,1759581488199,13.51808882,0.00018693,2]
[389109793,1759581488285,237.39436471,0.00018693,2]
[389109794,1759581492736,239.41687668,0.00018694,2]
[389109795,1759581493452,9509.68066979,0.00018664,2]
[389109796,1759581493473,10000.01,0.00018664,2]
[389109797,1759581493494,2509.68209453,0.00018664,2]
[389109798,1759581556582,49978.9513998,0.00017832,2]
[389109800,1759581655168,-227.47828011,0.000183,2]
[389109801,1759581655195,-4545.05343978,0.00018321,2]
[389109802,1759581655391,-454.94656022,0.00018321,2]
[389109803,1759581655419,-500.0,0.000184,2]
[389109804,1759581655449,-1200.0,0.00018505,2]
[389109805,1759581655477,-690.11687956,0.00018506,2]
[389109806,1759581655626,-4309.88312044,0.00018506,2]
[389109807,1759581655655,-204.90416361,0.00018594,2]
[389109808,1759581655733,-4632.59941864,0.00018594,2]
[389109809,1759581655761,-300.0,0.00018682,2]
[389109810,1759581655913,-300.0,0.00018682,2]
[389109811,1759581655944,-300.0,0.00018682,2]
[389109812,1759581655974,-445.07,0.00018684,3]
[389109813,1759581656002,-222.53,0.00018684,3]
[389109814,1759581656034,-359.89,0.00018684,3]
[389109815,1759581656064,-509.99,0.00018684,3]
[389109816,1759581656094,-414.42,0.00018684,3]
[389109817,1759581656124,-207.21,0.00018684,3]
[389109818,1759581656152,-621.65,0.00018684,3]
[389109819,1759581656179,-500.0,0.00018692,2]
[389109820,1759581656206,-500.0,0.00018692,2]
[389109821,1759581656233,-500.0,0.00018692,2]
[389109822,1759581656938,-500.0,0.00018692,2]
[389109823,1759581656968,-500.0,0.00018692,2]
[389109824,1759581656996,-500.0,0.00018692,2]
[389109825,1759581657025,-500.0,0.00018692,2]
[389109826,1759581657057,-265.86278877,0.00018692,2]
[389109827,1759581657092,-500.0,0.00018692,2]
[389109828,1759581657123,-500.0,0.00018692,2]
[389109829,1759581657150,-529.9953228,0.00018692,2]
[389109830,1759581657178,-237.39436471,0.00018692,2]
[389109831,1759581657210,-500.0,0.00018692,2]
[389109832,1759581657241,-433.50504744,0.00018692,2]
[389109833,1759581657363,-66.49495256,0.00018692,2]
[389109834,1759581657391,-500.0,0.00018692,2]
[389109835,1759581657419,-500.0,0.00018692,2]
[389109836,1759581657450,-500.0,0.00018692,2]
[389109837,1759581657478,-502.81412001,0.00018692,2]
[389109838,1759581657520,-614.51318185,0.00018692,2]
[389109839,1759581657551,-200.0,0.00018692,2]
[389109840,1759581657581,-500.0,0.00018692,2]
[389109841,1759581657612,-300.0,0.00018692,2]
[389109842,1759581657643,-500.0,0.00018692,2]
[389109843,1759581657674,-500.0,0.00018692,2]
[389109844,1759581657704,-132.36549116,0.00018692,2]
[389109845,1759581657933,-367.63450884,0.00018692,2]
[389109846,1759581657961,-500.0,0.00018692,2]
[389109847,1759581657994,-500.0,0.00018692,2]
[389109848,1759581658025,-500.0,0.00018692,2]
[389109849,1759581658054,-500.0,0.00018692,2]
[389109850,1759581658083,-500.0,0.00018692,2]
[389109851,1759581658112,-500.0,0.00018692,2]
[389109852,1759581658140,-500.0,0.00018692,2]
[389109853,1759581658168,-198.82957015,0.00018692,2]
[389109854,1759581658199,-503.68711933,0.00018692,2]
[389109855,1759581658228,-359.70760336,0.00018692,2]
[389109856,1759581659070,-140.29239664,0.00018692,2]
[389109857,1759581659100,-500.0,0.00018692,2]
[389109858,1759581659128,-500.0,0.00018692,2]
[389109859,1759581659157,-220.00000001,0.00018692,2]
[389109860,1759581659186,-500.0,0.00018692,2]
[389109861,1759581659215,-500.0,0.00018692,2]
[389109862,1759581659243,-500.0,0.00018692,2]
[389109863,1759581659271,-500.0,0.00018692,2]
[389109864,1759581659299,-500.0,0.00018692,2]
[389109865,1759581659329,-500.0,0.00018692,2]
[389109866,1759581659519,-500.0,0.00018692,2]
[389109867,1759581659595,-500.0,0.00018692,2]
[389109868,1759581659625,-500.0,0.00018692,2]
[389109869,1759581659653,-500.0,0.00018692,2]
[389109870,1759581659682,-500.0,0.00018692,2]
[389109871,1759581659710,-500.0,0.00018692,2]
[389109872,1759581659738,-500.0,0.00018692,2]
[389109873,1759581659766,-500.0,0.00018692,2]
[389109874,1759581659795,-500.0,0.00018692,2]
[389109875,1759581659822,-500.0,0.00018692,2]
[389109876,1759581659850,-500.0,0.00018692,2]
[389109877,1759581664845,155.842384,0.00024647,30]
[389109878,1759581665140,155.842384,0.00024611,30]
[389109879,1759581667087,-5000.0,0.00018505,2]
[389109880,1759581667301,-300.0,0.00018691,2]
[389109881,1759581667334,-500.0,0.00018692,2]
[389109882,1759581667364,-500.0,0.00018692,2]
[389109883,1759581667393,-500.0,0.00018692,2]
[389109884,1759581667423,-500.0,0.00018692,2]
[389109885,1759581667453,-500.0,0.00018692,2]
[389109886,1759581667483,-500.0,0.00018692,2]
[389109887,1759581667514,-500.0,0.00018692,2]
[389109888,1759581667544,-500.0,0.00018692,2]
[389109889,1759581667572,-500.0,0.00018692,2]
[389109890,1759581667634,-500.0,0.00018692,2]
[389109891,1759581667664,-500.0,0.00018692,2]
[389109892,1759581667693,-500.0,0.00018692,2]
[389109893,1759581667723,-500.0,0.00018692,2]
[389109894,1759581667753,-500.0,0.00018692,2]
[389109895,1759581667781,-500.0,0.00018692,2]
[389109896,1759581667809,-614.44392475,0.00018692,2]
[389109897,1759581667839,-500.0,0.00018692,2]
[389109898,1759581667868,-500.0,0.00018692,2]
[389109899,1759581668080,-271.1221505,0.00018692,2]
[389109900,1759581668418,-228.8778495,0.00018692,2]
[389109901,1759581668447,-500.0,0.00018692,2]
[389109902,1759581668478,-500.0,0.00018692,2]
[389109903,1759581668507,-554.47790221,0.00018692,2]
[389109904,1759581668539,-500.0,0.00018692,2]
[389109905,1759581668569,-500.0,0.00018692,2]
[389109906,1759581668607,-500.0,0.00018692,2]
[389109907,1759581668636,-500.0,0.00018692,2]
[389109908,1759581668666,-500.0,0.00018692,2]
[389109909,1759581668695,-500.0,0.00018692,2]
[389109910,1759581671292,-500.0,0.00018692,2]
[389109911,1759581671324,-500.0,0.00018692,2]
[389109912,1759581671359,-500.0,0.00018692,2]
[389109913,1759581671389,-500.0,0.00018692,2]
[389109914,1759581671420,-500.0,0.00018692,2]
[389109915,1759581671450,-642.80957082,0.00018692,2]
[389109916,1759581671480,-500.0,0.00018692,2]
[389109917,1759581671508,-500.0,0.00018692,2]
[389109918,1759581671535,-500.0,0.00018692,2]
[389109919,1759581671564,-214.39085836,0.00018692,2]
[389109920,1759581671785,-285.60914164,0.00018692,2]
[389109921,1759581671817,-500.0,0.00018692,2]
[389109922,1759581671849,-500.0,0.00018692,2]
[389109923,1759581671880,-500.0,0.00018692,2]
[389109924,1759581671911,-500.0,0.00018692,2]
[389109925,1759581671941,-500.0,0.00018692,2]
[389109926,1759581671969,-500.0,0.00018692,2]
[389109927,1759581671998,-500.0,0.00018692,2]
[389109928,1759581672026,-500.0,0.00018692,2]
[389109929,1759581672056,-500.0,0.00018692,2]
[389109930,1759581672130,-500.0,0.00018692,2]
[389109931,1759581672158,-500.0,0.00018692,2]
[389109932,1759581672189,-500.0,0.00018692,2]
[389109933,1759581672219,-500.0,0.00018692,2]
[389109934,1759581672249,-500.0,0.00018692,2]
[389109935,1759581672281,-343.81382234,0.00018692,2]
[389109936,1759581672311,-500.0,0.00018692,2]
[389109937,1759581672342,-500.0,0.00018692,2]
[389109938,1759581672529,-500.0,0.00018692,2]
[389109939,1759581672561,-500.0,0.00018692,2]
[389109940,1759581672693,-500.0,0.00018692,2]
[389109941,1759581672725,-500.0,0.00018692,2]
[389109942,1759581672752,-500.0,0.00018692,2]
[389109943,1759581672782,-500.0,0.00018692,2]
[389109944,1759581672813,-500.0,0.00018692,2]
[389109945,1759581672842,-500.0,0.00018692,2]
[389109946,1759581672869,-446.56082474,0.00018692,2]
[389109947,1759581672898,-370.08379506,0.00018692,2]
[389109948,1759581672927,-155.42,0.00018692,2]
[389109949,1759581673908,-2224.04707643,0.00018693,2]